bitfinex-derivatives/quotes_ETHF0:USTF0_20260201
["timestamp","ask_amount","ask_price","bid_price","bid_amount"]
[1769957445421,7.33777163,2376.5,2374.7,6.74117937]
[1769957445621,20.8103156,2375.5,2374.4,40.8]
[1769957445829,7.54850163,2374.9,2372.5,6.73765281]
[1769957446120,7.54854163,2374.5,2372.7,6.73765281]
[1769957446525,7.33777163,2374.0,2372.2,8.42565281]
[1769957446724,7.33777163,2373.7,2372.8,40.8]
[1769957446925,13.26186397,2373.4,2372.8,40.8]
[1769957447128,0.00470094,2374.0,2372.9,6.73765281]
[1769957447926,7.33777163,2374.9,2372.9,6.73765281]
[1769957448431,7.33777163,2375.2,2372.9,6.73765281]
[1769957448636,7.33777163,2374.9,2372.9,6.73765281]
[1769957448827,7.54850163,2374.9,2372.9,6.73765281]
[1769957449032,7.54946929,2374.9,2372.9,6.73765281]
[1769957449228,7.33873929,2374.9,2372.9,6.73765281]
[1769957451135,7.33777163,2374.7,2372.9,6.73765281]
[1769957451335,0.00096766,2374.9,2372.9,6.73765281]
[1769957451532,0.00096766,2374.9,2372.8,45.047]
[1769957451533,0.00096766,2374.9,2373.1,6.73765281]
[1769957451836,7.33873929,2374.9,2373.1,6.73765281]
[1769957452131,0.00096766,2374.9,2373.1,6.73765281]
[1769957452338,0.00096766,2374.9,2374.2,40.8]
[1769957452535,0.00096766,2374.9,2374.2,40.80334097]
[1769957452936,0.00096766,2374.9,2374.2,47.54099378]
[1769957453231,0.07326755,2377.2,2374.2,47.54099378]
[1769957453232,7.33777163,2377.0,2374.8,6.73765281]
[1769957453431,7.33777163,2377.0,2375.2,6.94835281]
[1769957453638,7.33777163,2377.7,2376.5,0.21058]
[1769957453834,3.4328692,2377.9,2376.4,7.41969147]
[1769957454029,0.21048,2377.7,2376.4,6.59237267]
[1769957454334,3.4328692,2377.4,2376.4,0.00487263]
[1769957454531,0.21056,2376.9,2376.4,2.63e-06]
[1769957454736,1.76023471,2378.0,2374.8,2.473]
[1769957454737,3.4328692,2377.5,2374.8,2.473]
[1769957454932,1.06399034,2377.3,2374.8,2.473]
[1769957455138,2.74999034,2377.8,2375.2,0.2107]
[1769957455327,3.4328692,2377.4,2374.8,2.473]
[1769957455536,3.4328692,2376.9,2374.8,2.473]
[1769957455839,0.21058,2376.7,2375.8,40.8]
[1769957456037,0.21062,2376.2,2375.0,6.86524693]
[1769957456233,0.21057,2376.7,2375.0,6.86524693]
[1769957456641,3.4328692,2376.5,2375.0,6.86524693]
[1769957456834,0.21062,2376.2,2375.0,6.86524693]
[1769957457034,0.00342866,2376.9,2375.0,6.86524693]
[1769957457237,0.21048,2377.8,2375.7,7.41969147]
[1769957457730,0.21048,2377.7,2375.7,7.41969147]
[1769957457930,3.4328692,2377.2,2375.7,7.41969147]
[1769957458137,3.4328692,2377.2,2375.3,7.41969147]
[1769957458341,0.21058,2376.7,2375.3,7.41969147]
[1769957458536,3.4328692,2376.7,2374.8,7.4242078]
[1769957458836,3.4328692,2379.4,2376.6,7.3946561]
[1769957459036,3.4328692,2380.0,2377.5,7.3946561]
[1769957459334,0.2103,2379.8,2378.6,40.8]
[1769957459535,3.4328692,2380.0,2378.6,40.8]
[1769957459738,3.4328692,2380.0,2378.7,7.3946561]
[1769957459939,0.00144397,2379.7,2378.7,7.3946561]
[1769957460235,0.00144397,2379.7,2377.5,2.6394732]
[1769957460236,7.33777163,2379.7,2377.2,2.4289732]
[1769957460433,3.6432292,2379.1,2377.1,2.4289732]
[1769957460637,7.33777163,2378.5,2376.4,2.4289732]
[1769957460941,7.33777163,2378.5,2376.0,4.88713125]
[1769957460942,0.21045,2378.1,2376.0,2.4289732]
[1769957461136,0.21045,2378.1,2375.5,4.944]
[1769957461137,7.33777163,2379.4,2376.1,2.4289732]
[1769957461337,7.33777163,2379.3,2377.9,40.8]
[1769957461534,7.33777163,2378.5,2376.0,1.685]
[1769957461741,0.21045,2378.1,2376.7,0.00480386]
[1769957461943,0.21053,2377.2,2375.0,2.4289732]
[1769957462239,7.33777163,2377.5,2375.3,6.73765281]
[1769957462439,7.33777163,2377.1,2375.3,6.73765281]
[1769957462637,7.33777163,2377.4,2375.3,6.73765281]
[1769957462838,0.21056,2376.8,2375.3,6.73765281]
[1769957463042,0.00480137,2376.8,2375.3,6.74126685]
[1769957463240,0.21061,2376.3,2374.8,6.73765281]
[1769957463431,0.21062,2376.1,2374.8,6.73765281]
[1769957464237,6.99203516,2376.3,2374.8,6.74128587]
[1769957464942,6.929592,2376.8,2374.9,6.73765281]
[1769957465139,6.92479063,2376.6,2375.0,6.73765281]
[1769957465341,0.21057,2376.7,2375.0,6.73765281]
[1769957465536,0.00480137,2376.8,2375.6,6.73765281]
[1769957466439,0.00480137,2376.8,2374.5,6.03874676]
[1769957466440,0.00480137,2376.8,2375.2,12.34365281]
[1769957466641,3.4328692,2378.1,2375.7,6.73765281]
[1769957466843,6.92479063,2378.0,2376.0,6.73765281]
[1769957467039,8.74940627,2378.5,2376.1,6.73765281]
[1769957467239,3.4328692,2378.6,2376.2,6.73765281]
[1769957467443,6.84679875,2378.7,2376.7,7.02376965]
[1769957467643,3.4328692,2378.0,2376.7,0.00477714]
[1769957467846,0.00325429,2378.7,2377.5,7.02376965]
[1769957468050,0.1,2380.5,2379.0,7.02376965]
[1769957468244,0.01110852,2381.0,2379.5,7.02376965]
[1769957468448,6.85005304,2382.6,2380.3,2.46510839]
[1769957468645,6.85005304,2382.0,2379.9,9.48887804]
[1769957468949,0.21005,2382.6,2379.9,9.48887804]
[1769957468950,6.85005304,2383.5,2381.2,2.46510839]
[1769957469145,6.85005304,2383.5,2380.8,6.16454921]
[1769957469146,6.85005304,2383.5,2381.9,40.8]
[1769957469349,0.21,2383.2,2380.8,1.685]
[1769957469544,3.6428992,2382.9,2380.2,2.46510839]
[1769957469743,10.28292224,2383.5,2380.3,7.02376965]
[1769957469744,0.21007,2382.4,2380.3,7.02376965]
[1769957469946,0.21007,2382.4,2380.3,7.02725058]
[1769957470150,3.4328692,2382.0,2380.3,0.00348093]
[1769957470345,3.4328692,2383.0,2380.9,7.02376965]
[1769957470551,3.4328692,2382.4,2380.8,40.8]
[1769957470751,6.85005304,2383.5,2380.3,0.00348093]
[1769957471051,3.4328692,2382.1,2380.3,7.02725058]
[1769957471245,18.64205304,2383.5,2380.5,7.02376965]
[1769957471246,6.88525292,2383.5,2380.5,7.02376965]
[1769957471443,3.4328692,2383.4,2380.7,7.02376965]
[1769957471650,6.88525292,2383.4,2382.0,40.8]
[1769957471853,6.88525292,2383.4,2382.0,40.80541454]
[1769957472046,8.56925292,2383.9,2382.1,7.02376965]
[1769957472354,3.4328692,2385.8,2382.5,7.23381965]
[1769957472558,6.88525292,2386.3,2383.2,7.23375965]
[1769957472849,3.4328692,2384.5,2383.2,7.02376965]
[1769957473049,7.09508292,2385.1,2383.2,7.02376965]
[1769957473251,6.88525292,2385.6,2383.2,7.02376965]
[1769957473547,6.88525292,2384.5,2382.7,7.02376965]
[1769957473751,6.88525292,2385.1,2382.7,7.02376965]
[1769957473947,8.56825292,2385.0,2382.7,7.02376965]
[1769957474143,0.07300978,2385.8,2382.7,7.02376965]
[1769957474144,6.88525292,2385.3,2382.7,7.02376965]
[1769957474347,7.09504292,2385.6,2382.7,7.02376965]
[1769957474551,3.4328692,2386.2,2383.4,7.02376965]
[1769957474947,0.07299278,2386.3,2383.6,7.02376965]
[1769957475146,0.07299278,2386.3,2383.9,7.02376965]
[1769957475347,0.20948,2389.1,2385.4,7.23356965]
[1769957475548,0.07294611,2388.5,2386.6,7.02376965]
[1769957475849,1.682,2389.7,2386.8,7.02376965]
[1769957476045,3.4328692,2390.1,2386.8,7.02376965]
[1769957476046,3.4328692,2389.5,2386.8,7.02376965]
[1769957476251,3.4328692,2390.1,2386.8,7.02376965]
[1769957476252,3.4328692,2389.0,2386.8,7.02376965]
[1769957476545,6.88525292,2388.6,2386.8,7.02376965]
[1769957476747,3.4328692,2387.8,2386.6,0.00343376]
[1769957476946,8.56725292,2387.8,2386.6,0.00343376]
[1769957477148,0.20962,2387.6,2385.8,7.02376965]
[1769957477350,6.88525292,2387.5,2385.8,7.02376965]
[1769957477553,3.4328692,2386.7,2384.9,7.02376965]
[1769957477755,8.56625292,2386.6,2384.9,7.02376965]
[1769957477954,6.88525292,2386.0,2383.8,7.02376965]
[1769957478254,6.88525292,2385.4,2383.8,7.02748869]
[1769957478455,8.56625292,2385.3,2383.8,0.00371904]
[1769957478657,3.4328692,2384.2,2382.6,7.02376965]
[1769957478960,7.09514292,2384.4,2382.6,7.02376965]
[1769957479160,10.31812212,2384.4,2382.7,40.8]
[1769957479355,6.88525292,2384.3,2382.7,40.8]
[1769957479663,6.88525292,2383.7,2381.5,7.02376965]
[1769957480158,6.88974218,2383.7,2381.5,7.02712222]
[1769957480360,6.88525292,2385.2,2382.4,7.02376965]
[1769957480661,8.56625292,2385.2,2384.0,40.8]
[1769957480859,3.4328692,2385.6,2384.0,40.8]
[1769957481062,3.4328692,2385.0,2384.0,40.8]
[1769957481258,6.88525292,2384.5,2382.5,7.02376965]
[1769957481561,6.88525292,2384.3,2382.5,7.02910195]
[1769957481958,1.68415804,2384.5,2382.5,7.02910195]
[1769957481959,0.00315804,2384.5,2382.5,7.02910195]
[1769957482160,0.00315804,2384.5,2383.1,40.8]
[1769957482459,7.09514292,2384.4,2383.1,40.8]
[1769957482663,6.88525292,2384.4,2383.1,40.8]
[1769957482858,7.09502292,2385.9,2383.2,7.02376965]
[1769957483058,6.88525292,2385.9,2383.4,7.02376965]
[1769957483462,6.9582558,2385.9,2383.4,7.02376965]
[1769957483765,6.88525292,2385.7,2383.4,7.02376965]
[1769957483965,1.68,2385.8,2383.1,40.8]
[1769957483966,0.20988,2384.6,2383.1,40.8]
[1769957484159,8.56525292,2384.5,2383.1,40.8]
[1769957484462,6.88525292,2385.0,2383.2,7.02376965]
[1769957484666,0.20983,2385.1,2383.2,7.02376965]
[1769957484861,6.88525292,2385.5,2383.2,7.02376965]
[1769957485062,0.20985,2384.9,2383.2,7.02376965]
[1769957485462,0.20987,2384.7,2383.2,7.02376965]
[1769957485664,0.20992,2384.2,2382.5,0.0053323]
[1769957485966,0.20993,2384.0,2382.5,7.02910195]
[1769957486175,0.21001,2383.1,2381.4,7.02376965]
[1769957486467,0.21001,2383.0,2381.4,7.02376965]
[1769957486665,1.68,2383.4,2381.4,7.02376965]
[1769957486867,0.21001,2383.1,2380.4,7.41587755]
[1769957487062,1.68,2383.0,2380.4,7.41974823]
[1769957487470,0.21008,2382.3,2380.4,7.41974823]
[1769957487663,1.68,2383.0,2380.4,7.41974823]
[1769957488163,0.21006,2382.5,2380.4,7.41974823]
[1769957488464,0.21007,2382.4,2380.4,7.41974823]
[1769957489162,1.68,2382.6,2381.1,40.8]
[1769957489163,0.21009,2382.2,2381.1,40.8]
[1769957489364,0.21009,2382.1,2381.1,40.8]
[1769957489757,1.68,2382.6,2380.4,0.00387068]
[1769957489758,0.21012,2381.8,2380.4,0.00387068]
[1769957489966,0.21012,2381.8,2380.4,7.41974823]
[1769957490164,3.385952,2382.8,2380.4,0.00387068]
[1769957490364,15.909,2382.7,2380.4,7.41974823]
[1769957490567,15.909,2382.7,2380.4,0.00387068]
[1769957490759,0.21016,2381.4,2380.5,40.8]
[1769957490969,0.21019,2381.0,2380.4,0.00071264]
[1769957491164,0.00529308,2381.4,2380.4,0.00071264]
[1769957491370,1.68,2381.3,2380.4,0.00071264]
[1769957491864,1.89017,2381.3,2380.5,40.8]
[1769957492270,1.68,2381.3,2380.4,0.00071264]
[1769957492473,0.21021,2380.8,2379.7,7.41587755]
[1769957492667,0.21022,2380.7,2379.7,7.41587755]
[1769957492867,0.00529308,2381.4,2379.7,7.41587755]
[1769957492868,0.21023,2380.6,2379.7,7.41587755]
[1769957493069,0.21023,2380.6,2378.6,7.41587755]
[1769957493366,1.681,2381.0,2379.2,7.41587755]
[1769957493572,0.21028,2380.0,2379.1,40.8]
[1769957493769,0.21029,2379.9,2379.1,40.8]
[1769957493969,1.681,2380.0,2378.7,7.41587755]
[1769957493970,0.21031,2379.7,2378.7,7.41587755]
[1769957494173,0.21573635,2379.7,2378.6,0.0039666]
[1769957494368,0.21573635,2379.7,2378.6,7.41984415]
[1769957494970,0.00542635,2379.7,2378.6,7.41984415]
[1769957495167,0.21573635,2379.7,2378.6,7.41984415]
[1769957495369,0.21034,2379.4,2378.6,7.41984415]
[1769957495574,0.21034,2379.4,2378.6,0.0039666]
[1769957495775,0.00542635,2379.7,2378.6,0.0039666]
[1769957496263,0.00542635,2379.7,2377.6,7.41587755]
[1769957496463,0.00542635,2379.7,2376.6,7.41587755]
[1769957496864,0.21044,2378.2,2376.6,7.41587755]
[1769957497070,1.681,2378.6,2376.6,7.41587755]
[1769957497368,1.681,2378.6,2376.6,7.421324]
[1769957497772,0.21049,2377.7,2376.6,7.421324]
[1769957497973,0.2105,2377.6,2376.6,7.421324]
[1769957498173,0.00511818,2377.7,2376.6,7.421324]
[1769957499274,0.21559818,2377.7,2376.7,40.8]
[1769957499770,0.21051,2377.4,2376.7,40.8]
[1769957499973,0.00511818,2377.7,2376.6,7.421324]
[1769957501069,0.21560818,2377.7,2376.8,7.42389736]
[1769957501270,0.00511818,2377.7,2376.8,7.42389736]
[1769957501571,0.21051,2377.4,2376.7,40.8]
[1769957501869,0.00511818,2377.7,2376.8,7.42389736]
[1769957502569,1.682,2379.2,2376.8,7.42389736]
[1769957502769,1.682,2379.1,2376.8,7.42389736]
[1769957503172,0.21048,2377.8,2376.8,7.42389736]
[1769957503368,1.682,2378.1,2376.8,7.42389736]
[1769957503573,0.21051,2377.4,2376.7,40.8]
[1769957504079,0.21052,2377.3,2376.7,40.8]
[1769957504778,0.21051,2377.4,2376.6,0.00544645]
[1769957504982,0.21052,2377.3,2376.6,0.00544645]
[1769957505280,0.21052,2377.3,2376.7,40.8]
[1769957505877,0.21054,2377.1,2376.3,7.42389736]
[1769957506280,1.683,2377.7,2374.5,2.40825895]
[1769957506480,0.21055,2377.0,2374.6,4.759]
[1769957506780,1.89349,2377.7,2375.8,40.8]
[1769957506981,1.89349,2377.7,2375.8,40.80436663]
[1769957507579,1.683,2377.7,2375.8,40.80436663]
[1769957507777,0.21051,2377.4,2375.8,40.80436663]
[1769957508088,0.21054,2377.1,2375.8,40.80436663]
[1769957508278,1.68791733,2378.1,2375.9,7.42850015]
[1769957508874,0.21055,2377.0,2375.9,7.42850015]
[1769957509580,0.21051,2377.4,2375.9,7.42850015]
[1769957509884,0.21054,2377.1,2375.9,7.42850015]
[1769957510182,0.21055,2377.0,2375.9,7.42850015]
[1769957510380,0.21049,2377.6,2375.9,7.42850015]
[1769957510686,0.21051,2377.4,2375.9,7.42850015]
[1769957511783,0.21052,2377.3,2375.9,7.42850015]
[1769957512185,1.68791733,2378.1,2375.9,7.42850015]
[1769957512376,0.21056,2376.9,2376.1,7.42850015]
[1769957512577,1.68791733,2378.1,2376.0,40.8]
[1769957512578,1.684,2377.1,2376.0,40.8]
[1769957512885,0.07217598,2377.4,2375.8,0.00436663]
[1769957512886,0.21061,2376.3,2375.8,0.00436663]
[1769957513088,0.21567857,2376.3,2374.7,5.847]
[1769957513281,0.21567857,2376.3,2374.3,5.8384077]
[1769957513282,0.21063,2376.0,2374.3,5.8384077]
[1769957513487,0.00506857,2376.3,2374.4,5.845]
[1769957513883,0.21064,2375.9,2374.8,40.8]
[1769957514181,0.21064,2375.9,2374.8,40.80303787]
[1769957514686,0.21567857,2376.3,2374.9,7.36370936]
[1769957514884,0.21062,2376.2,2374.9,7.36370936]
[1769957515683,0.00506857,2376.3,2374.9,7.36370936]
[1769957516286,1.684,2376.7,2375.0,7.27495165]
[1769957516486,1.684,2376.7,2375.2,7.27241736]
[1769957517180,0.307097,2377.8,2375.4,2.40825895]
[1769957517378,0.21056,2376.8,2375.6,7.23917113]
[1769957517580,0.21059,2376.5,2375.6,7.23917113]
[1769957518384,0.21061,2376.3,2375.6,7.23917113]
[1769957519187,0.21062,2376.2,2375.6,7.23917113]
[1769957519383,1.684,2376.8,2375.7,29.008]
[1769957519583,1.684,2376.8,2375.4,7.15188441]
[1769957519783,0.21063,2376.1,2375.4,7.15188441]
[1769957519995,0.00506811,2376.1,2375.4,7.15188441]
[1769957520294,0.00506811,2376.1,2374.9,5.81004291]
[1769957520588,1.684,2377.0,2374.9,2.40825895]
[1769957520790,0.21064,2376.0,2374.8,2.41129682]
[1769957520991,0.21063,2376.1,2374.9,8.17035153]
[1769957521190,0.21066,2375.8,2374.8,0.00303787]
[1769957521393,0.21066,2375.7,2374.8,0.00303787]
[1769957521591,0.0047836,2375.8,2374.8,0.00303787]
[1769957521893,0.0047836,2375.8,2374.4,2.40825895]
[1769957521894,0.21069,2375.4,2373.5,2.40825895]
[1769957522096,0.42436905,2375.7,2373.8,8.15344847]
[1769957522288,0.42436905,2375.6,2373.9,7.21631562]
[1769957522694,0.21078,2374.4,2373.0,2.40825895]
[1769957522894,0.2108,2374.1,2372.7,2.40825895]
[1769957523091,7.11618102,2374.4,2372.4,2.40825895]
[1769957523292,0.21083,2373.9,2372.3,2.40825895]
[1769957523592,10.454952,2375.0,2371.8,2.40825895]
[1769957523593,0.21086,2373.5,2371.8,2.40825895]
[1769957523787,0.00388892,2373.5,2372.0,2.40825895]
[1769957523990,0.00388892,2373.5,2372.1,7.68781271]
[1769957524187,0.00388892,2373.5,2372.0,7.68267427]
[1769957524394,0.21088,2373.3,2371.9,5.27441532]
[1769957524589,0.2109,2373.0,2371.8,0.00535751]
[1769957524797,0.21092,2372.8,2371.6,7.15188441]
[1769957524993,1.685,2373.2,2371.6,7.15188441]
[1769957525292,0.00388892,2373.5,2371.2,7.15188441]
[1769957525293,0.21093,2372.7,2371.2,7.15188441]
[1769957525496,0.21093,2372.6,2371.2,7.15188441]
[1769957525693,0.21097,2372.3,2371.2,0.00457504]
[1769957525887,0.21097,2372.2,2371.2,0.00457504]
[1769957526092,0.21093,2372.7,2370.8,7.15188441]
[1769957526394,0.21094,2372.6,2370.8,7.15188441]
[1769957526795,0.21096,2372.3,2370.8,7.15188441]
[1769957527092,0.21096,2372.3,2370.8,7.15538583]
[1769957527692,0.21098,2372.1,2370.8,7.15538583]
[1769957527901,6.89933696,2372.2,2370.8,7.15538583]
[1769957528694,0.21094,2372.6,2370.8,7.15538583]
[1769957528891,6.89933696,2372.3,2370.8,7.15538583]
[1769957529093,0.211,2371.9,2370.8,7.15538583]
[1769957529290,0.211,2371.9,2370.9,40.8]
[1769957529691,0.21101,2371.8,2370.9,40.8]
[1769957529894,0.00386383,2371.8,2371.0,6.83289324]
[1769957530098,0.21096,2372.4,2371.0,6.83289324]
[1769957530898,0.21097,2372.2,2371.0,6.83289324]
[1769957531103,0.21091,2372.9,2371.0,6.83289324]
[1769957531296,0.00458054,2372.2,2371.0,6.83289324]
[1769957532293,0.2109,2373.0,2371.2,6.83289324]
[1769957532499,0.21094,2372.6,2371.2,6.83289324]
[1769957532703,6.89933696,2373.2,2371.2,6.83289324]
[1769957532899,0.21094,2372.6,2371.2,6.83289324]
[1769957533099,0.21089,2373.2,2371.2,6.83289324]
[1769957533299,0.00295828,2373.2,2371.2,6.83289324]
[1769957533500,6.89933696,2373.0,2371.2,6.83289324]
[1769957533699,0.21096,2372.4,2371.2,6.83289324]
[1769957533903,6.89933696,2373.0,2371.2,6.83289324]
[1769957533904,0.21091,2373.0,2371.2,6.83289324]
[1769957534704,0.21091,2373.0,2371.8,6.83289324]
[1769957535602,0.00295828,2373.2,2371.8,6.83289324]
[1769957536003,0.21091,2372.9,2371.8,6.83289324]
[1769957536305,0.00295828,2373.2,2371.8,6.83289324]
[1769957536703,0.21383828,2373.2,2371.8,6.83289324]
[1769957537501,0.21089,2373.1,2371.8,6.83289324]
[1769957537810,6.90229524,2373.2,2371.8,6.83289324]
[1769957538004,0.21089,2373.1,2371.8,6.83289324]
[1769957538307,0.21093,2372.7,2371.8,6.83289324]
[1769957538502,6.90229524,2373.2,2371.8,6.83289324]
[1769957538709,0.21094,2372.6,2371.8,6.83289324]
[1769957539303,0.00295828,2373.2,2371.8,6.83289324]
[1769957539605,0.21089,2373.1,2371.8,6.83289324]
[1769957540002,0.21091,2372.9,2371.8,6.83289324]
[1769957540208,0.00295828,2373.2,2372.0,6.83289324]
[1769957541309,0.21089,2373.1,2372.0,6.83289324]
[1769957541702,0.21091,2372.9,2372.0,6.83289324]
[1769957542104,0.00295828,2373.2,2372.0,6.83289324]
[1769957542299,6.90229524,2373.2,2371.9,40.8]
[1769957542504,6.90229524,2373.2,2371.9,47.63289324]
[1769957542710,0.21093,2372.7,2371.9,47.63289324]
[1769957543008,0.21094,2372.5,2371.9,40.8]
[1769957543409,0.21099,2372.1,2371.1,6.83289324]
[1769957543804,0.21099,2372.0,2371.1,6.83289324]
[1769957544305,6.89933696,2372.5,2371.2,40.8]
[1769957544516,0.211,2371.9,2371.2,40.8]
[1769957545006,0.211,2371.9,2371.3,6.83289324]
[1769957545709,0.21101,2371.8,2371.2,40.8]
[1769957545909,0.21101,2371.8,2371.3,6.83289324]
[1769957546808,0.21101,2371.7,2371.3,6.83289324]
[1769957547007,0.21101,2371.7,2371.2,40.8]
[1769957547209,0.21103,2371.5,2370.8,0.00350142]
[1769957547405,0.00451968,2371.5,2370.8,0.00350142]
[1769957547707,0.21554968,2371.5,2370.1,6.83289324]
[1769957548108,0.21554968,2371.5,2369.6,3.916]
[1769957548109,0.00451968,2371.5,2370.3,6.83289324]
[1769957548314,3.63140795,2372.1,2370.5,6.83289324]
[1769957548816,0.21099,2372.0,2370.5,6.83289324]
[1769957549211,0.21401591,2372.0,2370.5,6.83796258]
[1769957550210,0.21101,2371.8,2370.5,6.83796258]
[1769957550614,0.21102,2371.7,2370.5,6.83796258]
[1769957550810,0.00302591,2372.0,2370.5,6.83796258]
[1769957551215,0.00302591,2372.0,2370.7,6.83289324]
[1769957551410,1.688,2373.1,2371.3,6.83289324]
[1769957551717,0.21084,2373.7,2372.3,6.83289324]
[1769957551915,6.89933696,2373.7,2372.3,6.83289324]
[1769957552107,0.21088,2373.2,2372.3,6.83289324]
[1769957552312,0.21410688,2373.2,2372.3,6.83650049]
[1769957552506,0.21089,2373.1,2372.3,6.83650049]
[1769957552706,0.21091,2372.9,2372.3,6.83650049]
[1769957552918,0.00322688,2373.2,2372.3,6.83650049]
[1769957553618,0.2109,2373.0,2372.4,40.8]
[1769957554111,0.2109,2373.0,2372.4,47.63289324]
[1769957554513,0.21085,2373.6,2372.5,6.83289324]
[1769957554708,0.21079,2374.2,2372.6,4.89891225]
[1769957554908,0.21079,2374.2,2372.8,6.83289324]
[1769957555819,0.21079,2374.2,2372.8,9.29903772]
[1769957556018,0.21079,2374.2,2372.9,6.83289324]
[1769957556315,6.89933696,2376.0,2373.1,6.83289324]
[1769957556519,0.21057,2376.7,2375.1,6.83289324]
[1769957556719,3.42042795,2376.9,2375.3,6.83289324]
[1769957556914,0.00420435,2376.7,2375.3,6.83289324]
[1769957557119,0.00420435,2376.7,2375.4,6.83289324]
[1769957557813,0.00420435,2376.7,2375.6,7.13496005]
[1769957558519,0.00420435,2376.7,2375.1,0.00297849]
[1769957558520,3.42042795,2377.3,2375.8,7.13496005]
[1769957558814,1.687,2377.7,2375.8,7.13496005]
[1769957559014,0.21054,2377.1,2375.8,7.13496005]
[1769957559213,0.21054,2377.1,2375.7,4.497]
[1769957559214,0.21054,2377.1,2375.9,47.93496005]
[1769957559415,0.21137367,2377.1,2375.9,47.93496005]
[1769957559710,0.21137367,2377.1,2376.0,7.13496005]
[1769957560316,0.00083367,2377.1,2376.0,7.13496005]
[1769957561115,0.21055,2377.0,2376.0,7.13496005]
[1769957561316,0.21055,2376.9,2376.0,7.13496005]
[1769957561712,3.42042795,2376.8,2375.9,40.8]
[1769957561919,0.21057,2376.7,2375.9,40.8]
[1769957562620,0.21058,2376.6,2375.9,40.8]
[1769957562818,0.2106,2376.4,2375.9,40.8]
[1769957563020,6.72777939,2376.4,2375.1,7.13793854]
[1769957563222,0.21062,2376.2,2375.1,7.13793854]
[1769957563523,10.35877734,2376.8,2375.1,7.13793854]
[1769957563724,0.21058,2376.6,2375.1,7.13793854]
[1769957564124,0.21058,2376.6,2375.3,7.13496005]
[1769957564323,0.21059,2376.5,2375.3,7.13496005]
[1769957565328,0.2106,2376.4,2375.3,7.13496005]
[1769957565624,6.87388365,2376.7,2375.3,7.13496005]
[1769957566427,0.21062,2376.2,2375.3,7.13496005]
[1769957566627,0.21062,2376.2,2375.2,40.8]
[1769957566829,0.21063,2376.1,2375.3,7.22730818]
[1769957567023,6.87388365,2376.7,2375.3,7.22730818]
[1769957567221,0.21063,2376.1,2375.2,40.8]
[1769957567527,0.21063,2376.0,2375.2,40.8]
[1769957567926,0.21064,2375.9,2375.2,40.8]
[1769957568227,0.21059,2376.6,2375.3,7.22730818]
[1769957568432,0.21064,2376.0,2375.3,7.22730818]
[1769957568820,6.87388365,2376.4,2375.3,7.22730818]
[1769957568821,10.2943116,2376.8,2375.3,7.22730818]
[1769957569025,6.87388365,2376.7,2375.3,7.22730818]
[1769957569225,0.21062,2376.2,2375.3,7.22730818]
[1769957569926,1.89655,2376.9,2375.3,7.22730818]
[1769957570133,0.21058,2376.7,2375.5,7.22730818]
[1769957570326,0.21058,2376.6,2375.5,7.22730818]
[1769957570526,0.21058,2376.6,2375.8,40.8]
[1769957571030,0.21061,2376.4,2375.8,40.8]
[1769957571432,0.21061,2376.3,2375.8,40.8]
[1769957571931,0.21061,2376.3,2375.8,48.02730818]
[1769957572234,0.21061,2376.3,2375.8,40.8]
[1769957572433,3.42042795,2376.4,2375.4,7.22730818]
[1769957572634,0.21062,2376.2,2375.4,7.22730818]
[1769957572832,10.2943116,2376.4,2375.1,0.00297849]
[1769957573134,10.2943116,2376.4,2374.6,7.22730818]
[1769957573135,0.21064,2376.0,2374.6,7.22730818]
[1769957573326,0.21064,2376.0,2374.7,40.8]
[1769957573529,0.21064,2376.0,2374.8,7.22730818]
[1769957573725,0.21064,2376.0,2375.0,7.22730818]
[1769957573938,3.42042795,2376.3,2375.0,7.23208876]
[1769957574234,0.21058,2376.6,2375.0,7.23208876]
[1769957574436,0.00083367,2377.1,2375.0,7.23208876]
[1769957574628,0.00083367,2377.1,2375.0,11.47908876]
[1769957574834,3.42042795,2377.7,2375.5,7.43797818]
[1769957575137,3.42042795,2377.7,2375.0,4.25178058]
[1769957575138,0.21052,2377.3,2375.7,7.22730818]
[1769957575329,0.21053,2377.2,2375.7,7.22730818]
[1769957575835,0.00297849,2377.2,2375.7,7.22730818]
[1769957576040,3.42042795,2377.7,2375.7,7.22730818]
[1769957576433,7.22393177,2378.1,2375.7,7.22730818]
[1769957576434,0.21049,2377.6,2375.7,7.22730818]
[1769957576933,3.96831932,2378.2,2375.8,7.22730818]
[1769957577132,0.21045,2378.1,2376.0,7.22730818]
[1769957577332,0.21045,2378.1,2376.2,7.22730818]
[1769957577734,0.21046,2378.0,2376.2,7.22730818]
[1769957578339,0.21043,2378.3,2376.2,7.22730818]
[1769957578936,0.21043,2378.3,2377.0,7.22730818]
[1769957579133,0.21043,2378.3,2377.0,7.23218627]
[1769957579330,0.35112266,2378.9,2377.0,7.23218627]
[1769957579534,3.42042795,2378.7,2377.0,7.23218627]
[1769957580036,0.2104,2378.7,2377.0,7.23218627]
[1769957580240,0.2104,2378.6,2377.0,7.23218627]
[1769957581346,6.87388365,2378.2,2377.0,7.23218627]
[1769957581646,10.2943116,2377.9,2377.0,8.09e-06]
[1769957581843,0.21052,2377.4,2377.0,8.09e-06]
[1769957582040,10.2943116,2377.9,2377.0,7.22731627]
[1769957582343,0.21052,2377.3,2377.0,8.09e-06]
[1769957582648,0.21059,2376.5,2375.3,7.22730818]
[1769957582836,0.21059,2376.5,2375.9,40.8]
[1769957583240,0.2106,2376.4,2375.3,7.22730818]
[1769957583440,0.21054,2377.0,2375.3,7.23113228]
[1769957583844,6.87388365,2377.3,2375.5,7.22730818]
[1769957584239,3.42042795,2377.4,2376.1,7.22730818]
[1769957584240,0.21055,2377.0,2376.1,7.22730818]
[1769957584542,1.684,2377.6,2376.1,7.22730818]
[1769957584543,6.87388365,2377.3,2376.1,7.22730818]
[1769957584742,0.21058,2376.6,2376.0,40.8]
[1769957584945,0.21059,2376.5,2375.7,7.22730818]
[1769957585540,0.2106,2376.4,2375.3,7.23113228]
[1769957585745,6.87388365,2376.9,2375.3,7.23113228]
[1769957585946,0.21061,2376.3,2375.4,40.8]
[1769957587446,6.71233889,2377.0,2375.5,6.91948916]
[1769957587844,0.21059,2376.5,2375.5,6.91948916]
[1769957589348,0.2106,2376.4,2375.4,40.8]
[1769957589651,0.21077,2374.5,2373.7,6.91948916]
[1769957589847,0.21078,2374.4,2373.3,6.91948916]
[1769957590051,0.21073,2374.9,2373.5,6.91948916]